bitfinex/quotes_BTCUSD_20210402
["timestamp","ask_amount","ask_price","bid_price","bid_amount"]
[1617376411711,0.49191836,59597.0,59578.0,0.23680024]
[1617376411907,0.49191836,59597.0,59578.0,0.18680024]
[1617376412313,0.00303724,59596.0,59578.0,0.18680024]
[1617376412513,0.85803724,59596.0,59578.0,0.28680024]
[1617376412734,0.2,59594.0,59581.0,0.006]
[1617376412931,0.20303724,59594.0,59578.0,0.18680024]
[1617376413131,0.215,59593.0,59578.0,0.18680024]
[1617376413330,0.10303724,59600.0,59578.0,0.15180024]
[1617376413730,0.39191836,59598.0,59578.0,0.15180024]
[1617376413930,0.00303724,59598.0,59578.0,0.15180024]
[1617376414131,0.3949556,59598.0,59578.0,0.15180024]
[1617376414329,0.00303724,59598.0,59578.0,0.15180024]
[1617376414531,0.3949556,59598.0,59578.0,0.1]
[1617376414734,0.251822,59592.0,59578.0,0.1]
[1617376414932,0.251822,59592.0,59578.0,0.158]
[1617376415133,0.251822,59592.0,59577.0,0.05]
[1617376416156,0.251822,59592.0,59575.0,0.004]
[1617376416355,0.2,59591.0,59573.0,0.9915]
[1617376416557,0.00303724,59591.0,59574.0,1.03]
[1617376416754,0.251822,59592.0,59576.0,0.0052]
[1617376416954,0.251822,59592.0,59577.0,0.162]
[1617376417156,0.251822,59592.0,59573.0,0.9415]
[1617376417352,0.251822,59592.0,59573.0,0.9915]
[1617376417751,0.251822,59592.0,59574.0,0.1]
[1617376418375,0.251822,59592.0,59575.0,0.045]
[1617376418581,0.251822,59592.0,59575.0,1.33234936]
[1617376418787,0.00303724,59597.0,59577.0,0.215]
[1617376418983,0.00303724,59607.0,59591.0,0.204]
[1617376419181,0.00303724,59607.0,59592.0,0.1046]
[1617376419380,1.04,59612.0,59592.0,0.1046]
[1617376419381,0.00303724,59611.0,59592.0,0.1046]
[1617376419583,0.84,59610.0,59596.0,0.251763]
[1617376419780,0.3949556,59609.0,59597.0,0.125875]
[1617376419978,0.00875843,59608.0,59597.0,0.125875]
[1617376420608,0.00303724,59611.0,59597.0,0.125875]
[1617376421009,0.00303724,59611.0,59599.0,0.25175]
[1617376421412,0.355,59610.0,59599.0,0.25175]
[1617376423237,0.355,59610.0,59600.0,0.1]
[1617376423437,1.04,59612.0,59600.0,0.1]
[1617376424039,1.04,59612.0,59599.0,0.25175]
[1617376425863,1.03524013,59612.0,59599.0,0.25175]
[1617376426063,0.155,59611.0,59604.0,0.125861]
[1617376426261,0.155,59611.0,59607.0,0.251722]
[1617376426462,0.155,59611.0,59607.0,0.231722]
[1617376426662,0.175,59610.0,59607.0,0.231722]
[1617376428265,0.00303724,59622.0,59607.0,0.231722]
[1617376428480,0.06303724,59623.0,59607.0,0.231722]
[1617376428680,0.11303724,59623.0,59607.0,0.231722]
[1617376428880,0.06359955,59622.0,59607.0,0.231722]
[1617376429283,0.06359955,59622.0,59607.0,0.221722]
[1617376430682,0.06359955,59622.0,59607.0,0.05]
[1617376430884,0.00491667,59621.0,59607.0,0.04927102]
[1617376431110,0.00795391,59621.0,59607.0,0.04927102]
[1617376431306,0.00491667,59621.0,59607.0,0.04927102]
[1617376431908,0.00522956,59621.0,59607.0,0.04927102]
[1617376432109,0.00522956,59621.0,59610.0,0.251721]
[1617376432316,0.00522956,59621.0,59610.0,0.48129102]
[1617376432512,0.00522956,59621.0,59613.0,0.125847]
[1617376432976,0.00522956,59621.0,59613.0,0.17511802]
[1617376433777,0.00522956,59621.0,59615.0,0.251694]
[1617376433977,0.00522956,59621.0,59615.0,0.706504]
[1617376437586,0.00476546,59621.0,59615.0,0.706504]
[1617376437987,0.00476546,59621.0,59615.0,0.865504]
[1617376439587,0.00476546,59621.0,59615.0,1.1156407]
[1617376439987,0.00476546,59621.0,59615.0,0.865504]
[1617376440791,0.9568,59650.0,59616.0,3.0]
[1617376440989,0.595,59631.0,59618.0,0.25167]
[1617376441388,0.595,59631.0,59618.0,0.24667]
[1617376441610,0.645,59630.0,59618.0,0.24667]
[1617376442416,0.896693,59630.0,59616.0,0.0125]
[1617376442610,0.685,59629.0,59616.0,0.0125]
[1617376442810,0.68528047,59629.0,59616.0,0.0125]
[1617376443611,0.1,59628.0,59616.0,0.0125]
[1617376443811,0.68528047,59629.0,59616.0,0.0125]
[1617376444012,0.1,59628.0,59616.0,0.0125]
[1617376444235,0.205,59627.0,59616.0,0.0125]
[1617376444433,0.205,59626.0,59616.0,0.0125]
[1617376444633,0.05,59627.0,59616.0,0.0125]
[1617376444831,0.1,59626.0,59616.0,0.0125]
[1617376445036,3.61,59625.0,59605.0,0.9026]
[1617376445233,0.25175,59615.0,59605.0,0.892619]
[1617376447456,0.30175,59615.0,59605.0,0.892619]
[1617376447854,0.1,59614.0,59605.0,0.892619]
[1617376448117,0.15,59614.0,59605.0,0.892619]
[1617376448518,0.1,59614.0,59605.0,0.892619]
[1617376448716,0.1,59614.0,59600.0,0.01]
[1617376448921,0.05257,59616.0,59600.0,0.01]
[1617376448922,0.25178,59607.0,59600.0,0.01]
[1617376449126,0.44121104,59616.0,59600.0,0.01]
[1617376449127,0.225,59615.0,59600.0,0.01]
[1617376449322,0.22,59614.0,59600.0,0.01]
[1617376449715,0.27,59614.0,59600.0,0.01]
[1617376450321,0.251787,59608.0,59600.0,0.01]
[1617376450515,0.301787,59608.0,59600.0,0.01]
[1617376450715,0.05,59608.0,59600.0,0.01]
[1617376450916,0.1,59615.0,59600.0,0.01]
[1617376451320,0.145,59614.0,59601.0,0.1]
[1617376451518,0.335689,59616.0,59601.0,0.1]
[1617376451919,0.00295437,59615.0,59600.0,0.01]
[1617376452120,0.33864331,59616.0,59600.0,0.01]
[1617376452324,0.00295431,59616.0,59600.0,0.01]
[1617376452721,0.00295433,59615.0,59600.0,0.01]
[1617376452922,0.00295433,59616.0,59600.0,0.01]
[1617376453120,0.00295396,59617.0,59600.0,0.01]
[1617376453318,0.205,59615.0,59604.0,0.006]
[1617376453520,0.251741,59617.0,59604.0,0.006]
[1617376453719,0.00037327,59615.0,59604.0,0.006]
[1617376453918,0.00037327,59615.0,59604.0,0.001]
[1617376454740,0.00037327,59615.0,59605.0,0.251721]
[1617376454942,0.00037327,59615.0,59605.0,0.555641]
[1617376455341,0.53040623,59620.0,59606.0,3.01]
[1617376455544,0.53040623,59620.0,59605.0,0.555641]
[1617376455738,0.71,59619.0,59605.0,0.555641]
[1617376455943,0.53040623,59620.0,59608.0,0.125849]
[1617376456339,0.53040623,59620.0,59608.0,0.120849]
[1617376456745,0.58040623,59620.0,59600.0,0.2556754]
[1617376456942,0.58040623,59620.0,59600.0,0.01]
[1617376457146,0.00295389,59616.0,59600.0,0.01]
[1617376457373,0.18295395,59615.0,59600.0,0.01]
[1617376457573,0.251756,59613.0,59600.0,0.01]
[1617376457971,0.301756,59613.0,59600.0,0.01]
[1617376458370,0.05,59613.0,59600.0,0.161]
[1617376458573,0.00295402,59613.0,59600.0,0.161]
[1617376458771,0.251781,59607.0,59600.0,0.161]
[1617376460602,0.251781,59607.0,59600.0,0.0001]
[1617376462635,0.00053603,59606.0,59600.0,0.0001]
[1617376463072,0.10049004,59618.0,59600.0,0.0001]
[1617376463267,0.16,59617.0,59600.0,0.44964]
[1617376463467,0.16,59617.0,59601.0,0.24483536]
[1617376463662,0.21416898,59616.0,59601.0,0.24483536]
[1617376464062,0.401745,59616.0,59601.0,0.24483536]
[1617376464260,0.451745,59616.0,59601.0,0.24483536]
[1617376464462,0.195,59614.0,59601.0,0.24483536]
[1617376464863,0.20925973,59613.0,59600.0,0.251845]
[1617376465261,0.06423813,59612.0,59600.0,0.251845]
[1617376465861,0.24423809,59614.0,59600.0,0.251845]
[1617376466065,0.49599009,59614.0,59600.0,0.251845]
[1617376466262,0.06423908,59613.0,59600.0,0.251845]
[1617376466462,0.06423908,59613.0,59600.0,0.246845]
[1617376467675,0.06423908,59613.0,59600.0,0.19428595]
[1617376467876,0.16423908,59613.0,59591.0,0.00303724]
[1617376468079,0.16423908,59613.0,59589.0,0.01]
[1617376468080,0.20424112,59612.0,59589.0,0.01]
[1617376468275,0.20424112,59612.0,59584.0,1.07934644]
[1617376468276,0.21657,59611.0,59584.0,1.07934644]
[1617376468475,0.39191836,59609.0,59584.0,1.07934644]
[1617376468677,0.3,59608.0,59584.0,1.07934644]
[1617376468877,0.30759276,59607.0,59584.0,1.07934644]
[1617376469073,0.36457281,59606.0,59584.0,0.9401]
[1617376469276,0.251848,59595.0,59578.0,0.02]
[1617376469876,3.61,59594.0,59580.0,0.24080154]
[1617376470074,0.345,59593.0,59581.0,0.99]
[1617376470274,0.345,59593.0,59579.0,0.24080154]
[1617376470488,0.59,59592.0,59581.0,0.24080154]
[1617376470689,0.841834,59592.0,59581.0,0.94]
[1617376470887,0.841834,59592.0,59578.0,0.94]
[1617376471091,0.585,59591.0,59579.0,0.94]
[1617376471688,0.585,59591.0,59577.0,0.94]
[1617376471886,0.585,59591.0,59576.0,1.101]
[1617376472091,0.251842,59589.0,59577.0,0.94]
[1617376472286,0.665,59588.0,59577.0,0.94]
[1617376472489,0.665,59588.0,59576.0,0.94]
[1617376472490,0.66,59588.0,59576.0,0.94]
[1617376472689,0.251842,59589.0,59576.0,0.891197]
[1617376472887,0.301583,59589.0,59573.0,0.891197]
[1617376473317,0.301583,59589.0,59572.0,2.304847]
[1617376473514,0.301583,59589.0,59573.0,0.891197]
[1617376474117,0.251852,59587.0,59572.0,1.41365]
[1617376474323,0.301852,59587.0,59572.0,1.41365]
[1617376474715,0.24,59586.0,59572.0,1.36365]
[1617376475116,0.63222492,59586.0,59572.0,1.36365]
[1617376475317,0.63222492,59586.0,59572.0,1.31365]
[1617376475520,0.251906,59580.0,59573.0,1.12919866]
[1617376475750,0.00030656,59586.0,59574.0,0.891197]
[1617376475947,0.00030656,59586.0,59573.0,0.23800166]
[1617376476146,0.00030656,59586.0,59572.0,2.204847]
[1617376476344,0.00030656,59586.0,59573.0,0.23800166]
[1617376476545,0.00030656,59586.0,59572.0,1.31365]
[1617376476748,0.00030656,59586.0,59572.0,2.204847]
[1617376476947,0.00030656,59586.0,59573.0,0.00303724]
[1617376477145,0.00030656,59586.0,59573.0,0.89423424]
[1617376477344,0.00030656,59586.0,59573.0,0.00303724]
[1617376478207,0.00030656,59586.0,59574.0,0.1]
[1617376478606,0.00030656,59586.0,59573.0,0.00303724]
[1617376479006,0.251865,59584.0,59573.0,0.00303724]
[1617376479211,0.251865,59584.0,59573.0,0.10303724]
[1617376479405,0.251865,59584.0,59573.0,0.00303724]
[1617376480211,0.251865,59584.0,59572.0,1.31365]
[1617376480410,0.05,59584.0,59572.0,1.26365]
[1617376480612,0.08651656,59586.0,59572.0,1.26365]
[1617376480613,0.13651656,59586.0,59572.0,1.26365]
[1617376480809,0.17,59585.0,59572.0,1.26365]
[1617376481012,0.27,59585.0,59572.0,1.26365]
[1617376481416,0.39191836,59584.0,59572.0,1.260428]
[1617376481616,0.251895,59578.0,59572.0,1.260428]
[1617376482015,0.251895,59578.0,59572.0,1.25135001]
[1617376482214,0.251895,59578.0,59572.0,1.24635001]
[1617376482417,0.251895,59578.0,59573.0,0.23622032]
[1617376482617,0.251895,59578.0,59572.0,1.24635001]
[1617376482815,0.251895,59578.0,59572.0,2.13754701]
[1617376483017,0.00030656,59586.0,59572.0,1.24635001]
[1617376483618,0.00030656,59586.0,59573.0,0.47622032]
[1617376484215,0.00030656,59586.0,59573.0,0.33622032]
[1617376484417,0.00030656,59586.0,59573.0,0.1]
[1617376484619,0.00030656,59586.0,59573.0,0.267]
[1617376484815,0.00030656,59586.0,59573.0,0.27003724]
[1617376485019,0.00030656,59586.0,59573.0,0.267]
[1617376485216,0.00030656,59586.0,59573.0,0.17003724]
[1617376485416,0.00030656,59586.0,59572.0,1.24605001]
[1617376485816,0.00030656,59586.0,59573.0,0.167]
[1617376486246,0.251866,59584.0,59573.0,0.17003724]
[1617376486446,0.251866,59584.0,59573.0,0.167]
[1617376486847,0.05,59584.0,59573.0,0.167]
[1617376487049,0.05,59584.0,59572.0,1.20856601]
[1617376487244,0.00030656,59586.0,59572.0,1.20856601]
[1617376487645,0.13033656,59588.0,59574.0,0.00303724]
[1617376487848,0.251879,59581.0,59575.0,0.18]
[1617376488245,0.251879,59581.0,59572.0,1.20856601]
[1617376489271,0.251888,59579.0,59572.0,1.20856601]
[1617376489671,0.251888,59579.0,59572.0,1.20756601]
[1617376490070,0.251888,59579.0,59573.0,0.23351792]
[1617376490272,0.251888,59579.0,59572.0,1.20756601]
[1617376490473,0.337821,59589.0,59573.0,0.1]
[1617376490673,0.337821,59589.0,59572.0,1.20756601]
[1617376490873,0.387821,59589.0,59572.0,1.20756601]
[1617376491393,0.387821,59589.0,59572.0,0.70756601]
[1617376491991,0.251881,59581.0,59572.0,0.70756601]
[1617376494255,0.30250308,59581.0,59572.0,0.70756601]
[1617376494654,0.251881,59581.0,59572.0,0.70756601]
[1617376495864,0.30273989,59581.0,59572.0,0.70756601]
[1617376496454,0.46154289,59581.0,59572.0,0.28576601]
[1617376496679,0.24,59580.0,59572.0,0.28576601]
[1617376496878,0.24026614,59580.0,59572.0,0.28576601]
[1617376497079,0.07428454,59579.0,59572.0,0.28576601]
[1617376497279,0.25192,59577.0,59572.0,0.28576601]
[1617376497877,0.25192,59577.0,59572.0,0.26076601]
[1617376498479,0.30192,59577.0,59572.0,0.26076601]
[1617376498678,0.251925,59575.0,59572.0,0.26076601]
[1617376498877,0.251925,59575.0,59572.0,0.25576601]
[1617376500305,0.251925,59575.0,59572.0,6.601e-05]
[1617376500505,0.4017,59575.0,59572.0,6.601e-05]
[1617376501308,0.251925,59575.0,59573.0,1.022197]
[1617376501514,0.4709,59576.0,59574.0,1.12982214]
[1617376501515,0.135,59576.0,59574.0,1.12982214]
[1617376501709,0.14026614,59580.0,59575.0,2.38862514]
[1617376501934,0.14026614,59580.0,59576.0,0.425711]
[1617376502131,0.14026614,59580.0,59577.0,0.131]
[1617376502333,0.14026614,59580.0,59578.0,0.04]
[1617376502534,0.14026614,59580.0,59579.0,0.15]
[1617376502742,0.14026614,59580.0,59579.0,0.864711]
[1617376502930,0.12926763,59580.0,59579.0,0.347]
[1617376503134,0.00026614,59580.0,59579.0,0.1]
[1617376503935,0.00026614,59580.0,59579.0,0.231]
[1617376504547,0.00026614,59580.0,59579.0,0.1]
[1617376504749,0.00026614,59580.0,59577.0,0.341836]
[1617376505148,0.00026614,59580.0,59577.0,0.251836]
[1617376505353,0.00026614,59580.0,59576.0,0.132]
[1617376506349,0.00026614,59580.0,59576.0,0.12761481]
[1617376507191,0.00026614,59580.0,59577.0,0.541711]
[1617376507392,0.00026614,59580.0,59578.0,0.1]
[1617376507591,0.00026614,59580.0,59579.0,0.637536]
[1617376507789,0.00026614,59580.0,59579.0,0.766536]
[1617376508274,0.00026614,59580.0,59579.0,0.514711]
[1617376508675,0.00026614,59580.0,59579.0,0.129]
[1617376508676,0.05054141,59580.0,59579.0,0.129]
[1617376508874,0.00026614,59580.0,59579.0,0.129]
[1617376509074,0.00026614,59580.0,59578.0,0.128]
[1617376509678,0.00026614,59580.0,59577.0,0.129]
[1617376509925,0.00026614,59580.0,59575.0,0.04]
[1617376510120,0.05063714,59580.0,59575.0,0.04]
[1617376510322,0.00026614,59580.0,59576.0,0.129]
[1617376511523,0.00026614,59580.0,59575.0,0.129]
[1617376511926,0.1,59586.0,59576.0,1.22]
[1617376511927,0.09026614,59586.0,59576.0,1.22]
[1617376512126,0.002,59590.0,59575.0,0.76990704]
[1617376512329,0.002,59590.0,59575.0,0.53345]
[1617376513126,0.251865,59585.0,59575.0,0.53345]
[1617376513724,0.09026614,59589.0,59575.0,0.53345]
[1617376513925,0.09026614,59589.0,59578.0,0.156]
[1617376514526,0.00197191,59583.0,59579.0,0.129]
[1617376515155,0.00197191,59583.0,59575.0,0.128]
[1617376515353,0.00197191,59582.0,59575.0,0.128]
[1617376515754,0.00197191,59582.0,59575.0,0.088]
[1617376516155,0.00197191,59582.0,59574.0,0.004]
[1617376516353,0.00197191,59582.0,59574.0,0.1]
[1617376516556,0.00197284,59580.0,59574.0,0.1]
[1617376516753,0.04201633,59580.0,59574.0,0.1]
[1617376517157,0.125939,59582.0,59574.0,0.1]
[1617376519192,0.00023394,59581.0,59574.0,0.1]
[1617376519391,0.00023394,59581.0,59574.0,0.10083923]
[1617376523031,0.00023394,59581.0,59574.0,0.09706671]
[1617376523527,0.10903694,59581.0,59574.0,0.09706671]
[1617376523735,0.108803,59580.0,59574.0,0.08729971]
[1617376523930,0.0754782,59579.0,59574.0,0.08729971]
[1617376524133,3.61,59577.0,59566.0,0.93426601]
[1617376524331,0.125957,59575.0,59566.0,0.93426601]
[1617376524530,0.84,59574.0,59566.0,0.93426601]
[1617376524725,0.39191836,59573.0,59566.0,0.93426601]
[1617376524929,0.251925,59572.0,59566.0,0.88426601]
[1617376525128,0.63884336,59572.0,59566.0,0.87870734]
[1617376525329,0.78,59571.0,59566.0,0.85370734]
[1617376525555,0.63884336,59572.0,59566.0,0.85370734]
[1617376525556,0.38691836,59569.0,59566.0,0.80370734]
[1617376525756,0.76343836,59569.0,59566.0,0.80370734]
[1617376525957,0.34691836,59568.0,59558.0,0.292314]
[1617376526364,3.61,59567.0,59558.0,0.265114]
[1617376526958,3.61,59567.0,59557.0,0.0004]
[1617376527156,0.66,59566.0,59557.0,0.0004]
[1617376527359,0.775,59565.0,59557.0,0.0004]
[1617376527565,0.22854768,59564.0,59557.0,0.0004]
[1617376527760,0.09026614,59563.0,59557.0,0.0004]
[1617376527962,0.18691836,59562.0,59557.0,0.0004]
[1617376528186,0.43889236,59560.0,59557.0,0.0004]
[1617376528388,0.4,59559.0,59557.0,0.0004]
[1617376528585,0.18691836,59558.0,59557.0,0.0004]
[1617376528783,0.09026614,59559.0,59557.0,0.0004]
[1617376528990,0.18691836,59558.0,59557.0,0.0004]
[1617376529184,3.61,59557.0,59555.0,0.0062]
[1617376529385,0.84,59556.0,59555.0,0.0062]
[1617376529591,4.5,59556.0,59555.0,0.0062]
[1617376529990,4.57443,59556.0,59555.0,0.0062]
[1617376530186,4.67443,59556.0,59555.0,0.0062]
[1617376530385,4.57443,59556.0,59555.0,0.0062]
[1617376531005,4.52443,59556.0,59555.0,0.0062]
[1617376532209,1.06443,59556.0,59555.0,0.0062]
[1617376532409,0.91443,59556.0,59555.0,0.0062]
[1617376532608,3.49443,59556.0,59555.0,0.0012]
[1617376533623,3.54443,59556.0,59555.0,0.0012]
[1617376533831,3.54443,59556.0,59552.0,0.0004]
[1617376533832,0.22854768,59554.0,59543.0,0.0004]
[1617376534026,3.61,59553.0,59543.0,0.0004]
[1617376534231,3.79691836,59553.0,59543.0,0.0024]
[1617376534430,0.84,59552.0,59543.0,0.0024]
[1617376534627,0.546,59550.0,59541.0,0.0004]
[1617376534830,0.22750754,59545.0,59541.0,0.0024]
[1617376535028,0.18691836,59544.0,59541.0,0.0024]
[1617376535227,0.26607836,59544.0,59538.0,0.0004]
[1617376535425,0.18691836,59543.0,59539.0,0.891197]
[1617376535628,0.18691836,59543.0,59539.0,0.002]
[1617376536055,4.105,59542.0,59539.0,0.002]
[1617376536254,4.45906182,59542.0,59539.0,0.002]
[1617376536456,3.605,59540.0,59539.0,0.002]
[1617376536655,3.605,59540.0,59533.0,0.72318]
[1617376536855,0.94855,59541.0,59533.0,0.72518]
[1617376536856,0.22701116,59538.0,59533.0,0.72518]
[1617376537058,0.22701116,59538.0,59534.0,0.71318]
[1617376537252,0.22701116,59538.0,59534.0,0.95818]
[1617376537451,0.22701116,59538.0,59535.0,0.385711]
[1617376537658,2.8,59537.0,59535.0,0.002]
[1617376537856,3.884101,59536.0,59535.0,0.002]
[1617376538053,3.61,59535.0,59532.0,0.71318]
[1617376538267,0.22762314,59534.0,59532.0,0.71318]
[1617376538454,3.61,59535.0,59531.0,1.63508]
[1617376538723,3.61,59535.0,59532.0,0.71318]
[1617376538724,0.12603,59535.0,59532.0,0.71318]
[1617376539122,0.252059,59534.0,59532.0,0.71318]
[1617376539321,0.252059,59534.0,59533.0,0.04]
[1617376539523,0.252059,59534.0,59533.0,1.249139]
[1617376540317,0.252059,59534.0,59530.0,0.0008]
[1617376540519,0.252059,59534.0,59531.0,0.71318]
[1617376540719,0.252059,59534.0,59531.0,0.71518]
[1617376540720,0.00039827,59533.0,59531.0,0.71518]
[1617376541117,0.00039827,59533.0,59531.0,0.002]
[1617376541520,3.884101,59532.0,59531.0,0.002]
[1617376541723,3.61,59531.0,59528.0,0.71318]
[1617376541920,0.126031,59528.0,59523.0,0.71318]
[1617376542122,0.126031,59528.0,59523.0,0.002]
[1617376542319,0.126031,59528.0,59523.0,0.71518]
[1617376542522,0.126031,59528.0,59523.0,0.71018]
[1617376542719,0.126031,59528.0,59524.0,0.70818]
[1617376543117,0.126031,59528.0,59524.0,0.70518]
[1617376543319,0.252061,59527.0,59525.0,0.70318]
[1617376543522,0.252061,59527.0,59525.0,0.002]
[1617376543719,0.539101,59526.0,59525.0,0.002]
[1617376543934,2.364101,59526.0,59525.0,0.002]
[1617376544134,2.09,59526.0,59523.0,0.70318]
[1617376544335,0.849101,59525.0,59522.0,0.70758]
[1617376544535,0.252075,59524.0,59522.0,0.70758]
[1617376544737,0.274101,59523.0,59522.0,0.0044]
[1617376544936,0.419101,59523.0,59522.0,0.70958]
[1617376545132,0.274101,59523.0,59522.0,0.70958]
[1617376545332,0.274101,59523.0,59522.0,0.0064]
[1617376545536,2.48172414,59523.0,59522.0,0.002]
[1617376545739,3.61,59522.0,59514.0,0.0004]
[1617376545941,3.874101,59520.0,59514.0,0.0004]
[1617376546340,1.134101,59520.0,59514.0,0.0004]
[1617376546553,1.274101,59520.0,59519.0,0.0024]
[1617376547152,0.274101,59520.0,59519.0,0.0024]
[1617376547354,0.75172414,59520.0,59519.0,0.0024]
[1617376547553,0.75172414,59520.0,59519.0,0.70558]
[1617376547754,0.524101,59520.0,59519.0,0.0024]
[1617376548553,2.824101,59520.0,59519.0,0.0024]
[1617376548754,0.524101,59520.0,59519.0,0.0024]
[1617376549177,0.524101,59520.0,59519.0,0.0021]
[1617376549577,2.414101,59520.0,59519.0,0.0021]
[1617376549775,0.524101,59520.0,59519.0,0.0021]
[1617376549979,0.524101,59520.0,59519.0,0.70528]
[1617376550180,0.274101,59520.0,59519.0,0.70528]
[1617376550381,0.274101,59520.0,59519.0,0.0021]
[1617376550982,0.50172414,59520.0,59519.0,0.0021]
[1617376551184,0.95599289,59520.0,59519.0,0.0021]
[1617376551586,3.09,59519.0,59511.0,0.73048]
[1617376551806,0.25498638,59518.0,59512.0,0.70318]
[1617376552006,0.25498638,59518.0,59513.0,0.165]
[1617376552207,0.252117,59515.0,59513.0,0.167]
[1617376552806,0.252117,59515.0,59513.0,0.162]
[1617376553005,2.194968,59514.0,59513.0,0.002]
[1617376553283,0.252117,59515.0,59513.0,0.002]
[1617376553682,0.336163,59514.0,59513.0,0.002]
[1617376554283,0.81780954,59514.0,59513.0,0.002]
[1617376554492,3.6,59513.0,59511.0,0.0243]
[1617376554685,4.709968,59512.0,59511.0,0.0243]
[1617376555083,1.159968,59512.0,59511.0,0.0243]
[1617376555287,1.159968,59512.0,59511.0,0.002]
[1617376555288,0.254968,59512.0,59511.0,0.002]
[1617376555487,0.336163,59514.0,59511.0,0.70518]
[1617376555685,0.336163,59514.0,59511.0,0.002]
[1617376555887,0.336163,59514.0,59512.0,0.70318]
[1617376556084,0.336163,59514.0,59512.0,0.70518]
[1617376556285,0.336163,59514.0,59512.0,0.002]
[1617376556685,2.164968,59513.0,59512.0,0.002]
[1617376557084,0.254968,59513.0,59512.0,0.002]
[1617376557481,0.336163,59514.0,59512.0,0.002]
[1617376557685,0.336163,59514.0,59513.0,0.164]
[1617376557886,0.336163,59514.0,59513.0,0.264]
[1617376558082,0.336163,59514.0,59513.0,0.266]
[1617376558283,0.336163,59514.0,59513.0,0.366]
[1617376558484,0.591131,59514.0,59513.0,0.002]
[1617376558884,0.891131,59514.0,59513.0,0.002]
[1617376559285,0.591131,59514.0,59513.0,0.002]
[1617376560088,1.86,59513.0,59506.0,0.704825]
[1617376560289,0.252132,59510.0,59507.0,0.135]
[1617376560492,0.31936717,59510.0,59508.0,0.04]
[1617376560688,0.31936717,59510.0,59505.0,0.2008]
[1617376560888,0.06723517,59510.0,59505.0,0.2028]
[1617376561088,0.126066,59509.0,59505.0,0.0028]
[1617376561288,0.126066,59509.0,59506.0,0.576077]
[1617376561488,0.126066,59509.0,59506.0,0.192]
[1617376561690,0.350132,59508.0,59503.0,0.168]
[1617376561889,0.098,59508.0,59503.0,0.869825]
[1617376562091,0.09838027,59508.0,59504.0,0.386077]
[1617376562309,0.09838027,59508.0,59504.0,1.080902]
[1617376562511,0.09838027,59508.0,59505.0,1.439825]
[1617376562709,0.05838027,59508.0,59506.0,1.285902]
[1617376562914,0.09838027,59508.0,59507.0,1.794943]
[1617376563113,0.00038027,59508.0,59507.0,1.756943]
[1617376563311,0.01638027,59508.0,59507.0,1.756943]
[1617376563512,0.01638027,59508.0,59507.0,1.446943]
[1617376563912,0.01638027,59508.0,59507.0,0.747118]
[1617376564114,0.07638027,59508.0,59507.0,0.161]
[1617376564313,0.07638027,59508.0,59507.0,0.002]
[1617376564513,0.13838027,59508.0,59507.0,0.701825]
[1617376564718,0.06038027,59508.0,59507.0,1.449943]
[1617376564930,0.06038027,59508.0,59507.0,0.715118]
[1617376565132,0.06038027,59508.0,59507.0,0.329]
[1617376565330,0.06038027,59508.0,59507.0,0.164]
[1617376565530,0.06038027,59508.0,59507.0,0.863825]
[1617376565734,0.13838027,59508.0,59507.0,1.063825]
[1617376565934,0.07838027,59508.0,59507.0,1.063825]
[1617376566131,0.07838027,59508.0,59507.0,1.599943]
[1617376566537,0.07838027,59508.0,59507.0,1.594943]
[1617376566731,0.13838027,59508.0,59507.0,1.596943]
[1617376566931,0.13838027,59508.0,59507.0,0.697118]
[1617376567135,0.13838027,59508.0,59507.0,1.010825]
[1617376567559,0.13838027,59508.0,59507.0,0.306]
[1617376567959,0.13838027,59508.0,59507.0,0.855825]
[1617376568160,0.13838027,59508.0,59507.0,1.055825]
[1617376568419,0.13838027,59508.0,59507.0,1.441943]
[1617376568615,0.13838027,59508.0,59507.0,1.656943]
[1617376568819,0.13838027,59508.0,59507.0,0.757118]
[1617376569015,0.13838027,59508.0,59507.0,0.855825]
[1617376569415,0.13838027,59508.0,59507.0,0.850825]
[1617376569615,0.13838027,59508.0,59507.0,1.436943]
[1617376570016,0.13838027,59508.0,59507.0,1.451943]
[1617376570223,0.13838027,59508.0,59507.0,0.752118]
[1617376570416,0.13838027,59508.0,59507.0,0.002]
[1617376571416,0.13838027,59508.0,59507.0,0.701825]
[1617376571619,0.07838027,59508.0,59507.0,0.701825]
[1617376571817,0.12885761,59508.0,59507.0,0.00949158]
[1617376572015,0.07838027,59508.0,59507.0,0.70931658]
[1617376572218,0.07838027,59508.0,59507.0,0.00949158]
[1617376572418,0.13838027,59508.0,59507.0,0.39560958]
[1617376572619,0.13838027,59508.0,59507.0,0.52760958]
[1617376572821,0.13838027,59508.0,59507.0,0.002]
[1617376573023,0.77829969,59508.0,59507.0,0.002]
[1617376573223,0.57968027,59508.0,59500.0,3.69358093]
[1617376573421,0.25314093,59504.0,59501.0,0.626113]
[1617376573623,0.077,59503.0,59501.0,0.98369393]
[1617376573819,0.137,59503.0,59502.0,1.765938]
[1617376574021,0.13798793,59503.0,59502.0,2.437938]
[1617376574218,0.06098793,59503.0,59502.0,1.048113]
[1617376574820,0.138,59503.0,59502.0,1.048113]
[1617376575631,0.13898796,59503.0,59502.0,1.048113]
[1617376575831,0.13898796,59503.0,59502.0,1.238113]
[1617376576031,0.13898796,59503.0,59502.0,1.038113]
[1617376576633,0.00098796,59503.0,59502.0,1.038113]
[1617376576834,0.252153,59504.0,59502.0,1.038113]
[1617376577036,0.077,59503.0,59502.0,1.39069393]
[1617376577633,0.077,59503.0,59502.0,1.038113]
[1617376577835,0.077,59503.0,59502.0,1.39069393]